fUSD/lending_fUSD_20251129
["ID","MTS","AMOUNT","RATE_DAILY","PERIOD"]
[395097092,1764424255537,-448.227701,0.000198,2]
[395097093,1764424255546,-448.227701,0.000198,2]
[395097094,1764424255555,-448.227701,0.000198,2]
[395097095,1764424255564,-151.0,0.000198,2]
[395097096,1764424255574,-151.0,0.000198,2]
[395097097,1764424255583,-151.0,0.000198,2]
[395097098,1764424255592,-372.769036,0.000198,2]
[395097099,1764424255602,-151.0,0.000198,2]
[395097100,1764424255611,-372.769036,0.000198,2]
[395097101,1764424255620,-372.769036,0.000198,2]
[395097102,1764424255629,-197.4133,0.000198,2]
[395097103,1764424255638,-372.769036,0.000198,2]
[395097104,1764424255647,-197.4133,0.000198,2]
[395097105,1764424255657,-160.954529,0.000198,2]
[395097106,1764424255667,-151.0,0.000198,2]
[395097107,1764424255676,-160.954529,0.000198,2]
[395097108,1764424255685,-160.954529,0.000198,2]
[395097109,1764424255695,-197.4133,0.000198,2]
[395097110,1764424255704,-160.954529,0.000198,2]
[395097111,1764424255713,-151.0,0.000198,2]
[395097112,1764424255723,-197.4133,0.000198,2]
[395097113,1764424255732,-151.0,0.000198,2]
[395097114,1764424255741,-151.0,0.000198,2]
[395097115,1764424255751,-151.0,0.000198,2]
[395097116,1764424255760,-151.0,0.000198,2]
[395097117,1764424255770,-151.0,0.000198,2]
[395097118,1764424255779,-151.0,0.000198,2]
[395097119,1764424255788,-151.0,0.000198,2]
[395097120,1764424255798,-1249.0,0.000198,2]
[395097121,1764424255807,-1249.0,0.000198,2]
[395097122,1764424255827,-831.0,0.000198,2]
[395097123,1764424255837,-1249.0,0.000198,2]
[395097124,1764424255847,-717.79196975,0.000198,2]
[395097125,1764424255858,-1249.0,0.000198,2]
[395097126,1764424255867,-151.0,0.000198,2]
[395097127,1764424255877,-151.0,0.000198,2]
[395097128,1764424255887,-1249.0,0.000198,2]
[395097129,1764424255897,-151.0,0.000198,2]
[395097130,1764424255908,-151.0,0.000198,2]
[395097131,1764424255918,-1249.0,0.000198,2]
[395097132,1764424255927,-151.0,0.000198,2]
[395097133,1764424255937,-1249.0,0.000198,2]
[395097134,1764424255947,-831.0,0.000198,2]
[395097135,1764424255959,-151.0,0.000198,2]
[395097136,1764424255969,-831.0,0.000198,2]
[395097137,1764424255979,-151.0,0.000198,2]
[395097138,1764424255989,-831.0,0.000198,2]
[395097139,1764424255999,-151.0,0.000198,2]
[395097140,1764424256009,-153.0,0.000198,2]
[395097141,1764424256018,-831.0,0.000198,2]
[395097142,1764424256028,-1249.0,0.000198,2]
[395097143,1764424256038,-153.0,0.000198,2]
[395097144,1764424256049,-151.0,0.000198,2]
[395097145,1764424256059,-151.0,0.000198,2]
[395097146,1764424256068,-152.0,0.000198,2]
[395097147,1764424256078,-152.0,0.000198,2]
[395097148,1764424256093,-152.0,0.000198,2]
[395097149,1764424256103,-152.0,0.000198,2]
[395097150,1764424256114,-152.0,0.000198,2]
[395097151,1764424256125,-152.0,0.000198,2]
[395097152,1764424256136,-152.0,0.000198,2]
[395097153,1764424256146,-152.0,0.000198,2]
[395097154,1764424256156,-1563.14464311,0.00019808,2]
[395097155,1764424256167,-1153.92615737,0.00019808,2]
[395097156,1764424256178,-610.0,0.00019841,2]
[395097157,1764424256189,-1321.0,0.00019841,2]
[395097158,1764424256200,-2856.142,0.00019841,2]
[395097159,1764424256210,-1603.0,0.00019841,2]
[395097160,1764424256220,-909.0,0.00019841,2]
[395097161,1764424256230,-1193.0,0.00019841,2]
[395097162,1764424256240,-640.0,0.00019841,2]
[395097163,1764424256251,-1258.0,0.00019841,2]
[395097164,1764424256261,-150.0,0.00019841,2]
[395097165,1764424256271,-2718.0,0.00019841,2]
[395097166,1764424256281,-562.0,0.00019841,2]
[395097167,1764424256292,-1242.0,0.00019886,2]
[395097168,1764424256302,-328.17073037,0.00019919,10]
[395097169,1764424256313,-1000.0,0.0002,3]
[395097170,1764424256323,-1000.0,0.0002,2]
[395097171,1764424256333,-1000.0,0.0002,2]
[395097172,1764424256344,-1244.0,0.0002,2]
[395097173,1764424256355,-1002.0,0.0002,2]
[395097174,1764424256365,-25445.47635502,0.0002,2]
[395097175,1764424256375,-185.47,0.0002,2]
[395097176,1764424256384,-4542.90961816,0.0002,2]
[395097177,1764424256395,-1253.0,0.00020023,2]
[395097178,1764424256404,-500.0,0.00020023,2]
[395097179,1764424256415,-150.0,0.00020036,2]
[395097180,1764424256425,-2669.86121684,0.00020036,2]
[395097181,1764424256438,-150.0,0.00020036,2]
[395097182,1764424256449,-3818.51566356,0.00020036,2]
[395097183,1764424256459,-150.0,0.00020036,2]
[395097184,1764424256469,-8840.7631391,0.00020036,2]
[395097185,1764424256479,-150.0,0.00020036,2]
[395097186,1764424256490,-3730.51821004,0.00020036,2]
[395097187,1764424256501,-1500.45769828,0.00020071,2]
[395097188,1764424256511,-1000.0,0.00020116,2]
[395097189,1764424256521,-500.0,0.00020179,2]
[395097190,1764424256531,-898.84,0.00020187,2]
[395097191,1764424256541,-150.0,0.00020219,2]
[395097192,1764424256551,-150.0,0.00020219,2]
[395097193,1764424256561,-150.0,0.00020219,2]
[395097194,1764424256571,-150.0,0.00020219,2]
[395097195,1764424256582,-150.0,0.00020219,2]
[395097196,1764424256592,-150.0,0.00020219,2]
[395097197,1764424256602,-150.0,0.00020219,2]
[395097198,1764424256612,-150.0,0.00020219,2]
[395097199,1764424256622,-150.0,0.00020219,2]
[395097200,1764424256635,-150.0,0.00020219,2]
[395097201,1764424256646,-150.0,0.00020219,2]
[395097202,1764424256656,-292.50808609,0.00020219,2]
[395097203,1764424256668,-500.0,0.0002027,2]
[395097204,1764424256678,-1000.0,0.0002027,2]
[395097205,1764424256688,-162.380719,0.00020274,2]
[395097206,1764424256698,-500.0,0.00020325,2]
[395097207,1764424256708,-2500.0,0.00020356,7]
[395097208,1764424256719,-3000.0,0.00020356,7]
[395097209,1764424256728,-500.0,0.00020367,2]
[395097210,1764424256738,-427.45964135,0.000204,7]
[395097211,1764424256748,-150.0,0.00020469,4]
[395097212,1764424256758,-238.53,0.00020505,2]
[395097213,1764424256768,-4926.5860656,0.00020512,2]
[395097214,1764424256778,-1100.1499508,0.00020512,2]
[395097215,1764424256787,-346.92554585,0.0002054,2]
[395097216,1764424256798,-309.29654756,0.0002054,2]
[395097217,1764424256807,-274.43055737,0.00020542,2]
[395097218,1764424256817,-151.0,0.00020548,2]
[395097219,1764424256827,-328.17073037,0.00020549,12]
[395097220,1764424256836,-150.0,0.00020668,4]
[395097221,1764424256846,-2000.0,0.000207,2]
[395097222,1764424256856,-150.0,0.00020718,4]
[395097223,1764424256866,-500.0,0.00020728,2]
[395097224,1764424256876,-9961.48845509,0.00020731,2]
[395097225,1764424256885,-150.0,0.00020781,4]
[395097226,1764424256896,-150.0,0.00020781,4]
[395097227,1764424256906,-1000.0,0.00020795,2]
[395097228,1764424256916,-168.3888056,0.00020822,2]
[395097229,1764424256926,-500.0,0.00020842,2]
[395097230,1764424256936,-500.0,0.0002087,2]
[395097231,1764424256946,-1000.0,0.0002087,2]
[395097232,1764424256958,-500.0,0.0002087,2]
[395097233,1764424256967,-500.0,0.000209,2]
[395097234,1764424256977,-500.0,0.000209,2]
[395097235,1764424256986,-500.0,0.000209,2]
[395097236,1764424256996,-500.0,0.000209,2]
[395097237,1764424257006,-500.0,0.000209,2]
[395097238,1764424257016,-500.0,0.000209,2]
[395097239,1764424257026,-500.0,0.000209,2]
[395097240,1764424257036,-500.0,0.000209,2]
[395097241,1764424257046,-500.0,0.000209,2]
[395097242,1764424257057,-500.0,0.000209,2]
[395097243,1764424257067,-1004.09752345,0.000209,2]
[395097244,1764424257078,-151.0,0.00020927,2]
[395097245,1764424257090,-151.0,0.00020927,2]
[395097246,1764424257101,-151.0,0.00020927,2]
[395097247,1764424257113,-150.0,0.00020968,4]
[395097248,1764424257124,-253.45221308,0.0002099,2]
[395097249,1764424257134,-60231.26613485,0.00021,2]
[395097250,1764424257143,-160.0,0.00021,7]
[395097251,1764424257153,-25710.17647,0.00021,2]
[395097252,1764424257163,-151.0,0.00021,2]
[395097253,1764424257173,-151.0,0.00021,2]
[395097254,1764424257183,-350.0,0.00021,2]
[395097255,1764424257193,-250.924078,0.00021,2]
[395097256,1764424257202,-151.0,0.00021,2]
[395097257,1764424257212,-151.0,0.00021,2]
[395097258,1764424257221,-151.0,0.00021,2]
[395097259,1764424257231,-151.0,0.00021,2]
[395097260,1764424257242,-151.0,0.00021,2]
[395097261,1764424257255,-151.0,0.00021,2]
[395097262,1764424257265,-151.0,0.00021,2]
[395097263,1764424257276,-151.0,0.00021,2]
[395097264,1764424257287,-151.0,0.00021,2]
[395097265,1764424257299,-151.0,0.00021,2]
[395097266,1764424257311,-151.0,0.00021,2]
[395097267,1764424257320,-151.0,0.00021,2]
[395097268,1764424257330,-301.335707,0.00021,2]
[395097269,1764424257339,-245.829605,0.00021,2]
[395097270,1764424257348,-151.0,0.00021,2]
[395097271,1764424257509,-156.759686,0.00021,2]
[395097272,1764424257519,-151.0,0.00021,2]
[395097273,1764424257531,-653.361433,0.00021,2]
[395097274,1764424257542,-151.0,0.00021,2]
[395097275,1764424257554,-151.0,0.00021,2]
[395097276,1764424257564,-653.361433,0.00021,2]
[395097277,1764424257573,-151.0,0.00021,2]
[395097278,1764424257582,-151.0,0.00021,2]
[395097279,1764424257591,-1452.112053,0.00021,2]
[395097280,1764424257601,-1452.112053,0.00021,2]
[395097281,1764424257610,-1452.112053,0.00021,2]
[395097282,1764424257619,-1452.112053,0.00021,2]
[395097283,1764424257628,-151.0,0.00021,2]
[395097284,1764424257637,-6344.11735,0.00021,2]
[395097285,1764424257645,-150.0,0.000211,7]
[395097286,1764424257654,-150.0,0.00021118,4]
[395097287,1764424257664,-500.0,0.0002112,2]
[395097288,1764424257673,-300.0,0.0002114,2]
[395097289,1764424257682,-300.0,0.00021145,2]
[395097290,1764424257692,-300.0,0.00021154,2]
[395097291,1764424257701,-369.0,0.00021171,2]
[395097292,1764424257711,-1152.0,0.00021171,2]
[395097293,1764424257721,-328.17073037,0.00021179,13]
[395097294,1764424257730,-300.0,0.000212,2]
[395097295,1764424257741,-1600.0,0.00021214,2]
[395097296,1764424257750,-150.0,0.00021218,4]
[395097297,1764424257759,-300.0,0.00021256,2]
[395097298,1764424257768,-2129.0,0.00021257,2]
[395097299,1764424257777,-241.89032763,0.0002126,2]
[395097300,1764424257786,-300.0,0.00021264,2]
[395097301,1764424257795,-1099.2699378,0.00021297,2]
[395097302,1764424257804,-245.4766347,0.00021297,2]
[395097303,1764424257814,-970.0,0.000213,2]
[395097304,1764424257823,-300.0,0.000213,2]
[395097305,1764424257832,-150.0,0.00021342,4]
[395097306,1764424257842,-150.0,0.00021342,4]
[395097307,1764424257852,-150.0,0.00021342,4]
[395097308,1764424257861,-174.61919141,0.0002137,2]
[395097309,1764424257871,-300.0,0.00021436,2]
[395097310,1764424257880,-2500.0,0.00021452,7]
[395097311,1764424257890,-3000.0,0.00021452,7]
[395097312,1764424257899,-151.0,0.00021452,2]
[395097313,1764424257909,-150.0,0.00021467,4]
[395097314,1764424257918,-300.0,0.00021473,2]
[395097315,1764424257927,-1000.0,0.00021538,2]
[395097316,1764424257936,-150.0,0.00021567,4]
[395097317,1764424257945,-500.0,0.00021568,2]
[395097318,1764424257956,-4609.0,0.00021582,2]
[395097319,1764424257967,-150.0,0.00021717,4]
[395097320,1764424257977,-300.0,0.00021719,2]
[395097321,1764424257986,-300.0,0.00021728,2]
[395097322,1764424257995,-1000.0,0.00021771,2]
[395097323,1764424258006,-454.754098,0.00021771,2]
[395097324,1764424258015,-454.754098,0.00021771,2]
[395097325,1764424258025,-151.0,0.00021771,2]
[395097326,1764424258035,-454.754098,0.00021771,2]
[395097327,1764424258045,-454.754098,0.00021771,2]
[395097328,1764424258054,-179.670094,0.00021771,2]
[395097329,1764424258064,-399.910474,0.00021771,2]
[395097330,1764424258073,-399.910474,0.00021771,2]
[395097331,1764424258082,-461.972338,0.00021771,2]
[395097332,1764424258091,-399.910474,0.00021771,2]
[395097333,1764424258100,-461.972338,0.00021771,2]
[395097334,1764424258110,-151.0,0.00021771,2]
[395097335,1764424258119,-399.910474,0.00021771,2]
[395097336,1764424258129,-151.0,0.00021771,2]
[395097337,1764424258138,-461.972338,0.00021771,2]
[395097338,1764424258147,-461.972338,0.00021771,2]
[395097339,1764424258156,-151.0,0.00021771,2]
[395097340,1764424258166,-151.0,0.00021771,2]
[395097341,1764424258175,-151.0,0.00021771,2]
[395097342,1764424258185,-151.0,0.00021771,2]
[395097343,1764424258194,-328.17073037,0.00021809,15]
[395097344,1764424258203,-289.29220146,0.00021813,7]
[395097345,1764424258212,-413.7028584,0.000219,2]
[395097346,1764424258221,-150.0,0.00021904,4]
[395097347,1764424258230,-150.0,0.00021904,4]
[395097348,1764424258239,-359.76179104,0.00021909,2]
[395097349,1764424258248,-320.74051982,0.00021909,2]
[395097350,1764424258258,-5000.0,0.00021918,2]
[395097351,1764424258266,-150.0,0.00021918,2]
[395097352,1764424258275,-181.08010149,0.00021918,2]
[395097353,1764424258284,-150.0,0.00021967,4]
[395097354,1764424258293,-500.0,0.0002197,2]
[395097355,1764424258302,-500.0,0.0002197,2]
[395097356,1764424258311,-1000.0,0.0002197,2]
[395097357,1764424258320,-1000.0,0.0002197,2]
[395097358,1764424258329,-500.0,0.0002197,2]
[395097359,1764424258338,-1000.0,0.0002197,2]
[395097360,1764424258347,-500.92742179,0.00021999,2]
[395097361,1764424258357,-500.0,0.00022,8]
[395097362,1764424258365,-500.0,0.00022,8]
[395097363,1764424258374,-500.0,0.00022,8]
[395097364,1764424258384,-500.0,0.00022,8]
[395097365,1764424258393,-500.0,0.00022,8]
[395097366,1764424258402,-500.0,0.00022,8]
[395097367,1764424258411,-500.0,0.00022,8]
[395097368,1764424258420,-500.0,0.00022,8]
[395097369,1764424258429,-500.0,0.00022,8]
[395097370,1764424258438,-500.0,0.00022,8]
[395097371,1764424258446,-500.0,0.00022,8]
[395097372,1764424258454,-500.0,0.00022,8]
[395097373,1764424258463,-500.0,0.00022,8]
[395097374,1764424258472,-518.68975976,0.00022,8]
[395097375,1764424258481,-16438.68223624,0.00022,4]
[395097376,1764424258490,-380.0,0.00022,3]
[395097377,1764424258499,-806.0,0.00022,2]
[395097378,1764424258508,-151.0,0.00022,2]
[395097379,1764424258517,-1249.0,0.00022,2]
[395097380,1764424258527,-151.0,0.00022,2]
[395097381,1764424258536,-1249.0,0.00022,2]
[395097382,1764424258545,-151.0,0.00022,2]
[395097383,1764424258554,-152.0,0.00022,2]
[395097384,1764424258563,-152.0,0.00022,2]
[395097385,1764424258572,-152.0,0.00022,2]
[395097386,1764424258581,-152.0,0.00022,2]
[395097387,1764424258591,-152.0,0.00022,2]
[395097388,1764424258600,-152.0,0.00022,2]
[395097389,1764424258609,-152.0,0.00022,2]
[395097390,1764424258618,-1249.0,0.00022,2]
[395097391,1764424258627,-157.0,0.00022,2]
[395097392,1764424258640,-151.0,0.00022,2]
[395097393,1764424258649,-151.0,0.00022,2]
[395097394,1764424258658,-153.0,0.00022,2]
[395097395,1764424258667,-153.0,0.00022,2]
[395097396,1764424258676,-153.0,0.00022,2]
[395097397,1764424258686,-153.0,0.00022,2]
[395097398,1764424258695,-153.0,0.00022,2]
[395097399,1764424258704,-152.0,0.00022,2]
[395097400,1764424258714,-152.0,0.00022,2]
[395097401,1764424258722,-152.0,0.00022,2]
[395097402,1764424258732,-152.0,0.00022,2]
[395097403,1764424258742,-1249.0,0.00022,2]
[395097404,1764424258751,-831.0,0.00022,2]
[395097405,1764424258760,-166.044131,0.00022,2]
[395097406,1764424258769,-151.0,0.00022,2]
[395097407,1764424258778,-175.854296,0.00022,2]
[395097408,1764424258788,-151.0,0.00022,2]
[395097409,1764424258797,-175.854296,0.00022,2]
[395097410,1764424258808,-151.0,0.00022,2]
[395097411,1764424258821,-175.854296,0.00022,2]
[395097412,1764424258831,-151.0,0.00022,2]
[395097413,1764424258840,-265.149413,0.00022,2]
[395097414,1764424258850,-175.854296,0.00022,2]
[395097415,1764424258859,-151.0,0.00022,2]
[395097416,1764424258868,-311.048365,0.00022,2]
[395097417,1764424258878,-151.0,0.00022,2]
[395097418,1764424258887,-311.048365,0.00022,2]
[395097419,1764424258897,-311.048365,0.00022,2]
[395097420,1764424258906,-151.0,0.00022,2]
[395097421,1764424258916,-311.048365,0.00022,2]
[395097422,1764424258926,-151.0,0.00022,2]
[395097423,1764424258936,-152.0,0.00022,2]
[395097424,1764424258945,-151.0,0.00022,2]
[395097425,1764424258958,-151.0,0.00022,2]
[395097426,1764424258967,-151.0,0.00022,2]
[395097427,1764424258976,-233.616815,0.00022,2]
[395097428,1764424258986,-233.616815,0.00022,2]
[395097429,1764424258995,-233.616815,0.00022,2]
[395097430,1764424259005,-233.616815,0.00022,2]
[395097431,1764424259014,-448.227701,0.00022,2]
[395097432,1764424259024,-448.227701,0.00022,2]
[395097433,1764424259034,-448.227701,0.00022,2]
[395097434,1764424259043,-448.227701,0.00022,2]
[395097435,1764424259052,-151.0,0.00022,2]
[395097436,1764424259062,-151.0,0.00022,2]
[395097437,1764424259071,-151.0,0.00022,2]
[395097438,1764424259081,-372.769036,0.00022,2]
[395097439,1764424259090,-151.0,0.00022,2]
[395097440,1764424259099,-372.769036,0.00022,2]
[395097441,1764424259108,-151.0,0.00022,2]
[395097442,1764424259117,-372.769036,0.00022,2]
[395097443,1764424259126,-197.4133,0.00022,2]
[395097444,1764424259135,-372.769036,0.00022,2]
[395097445,1764424259144,-197.4133,0.00022,2]
[395097446,1764424259153,-160.954529,0.00022,2]
[395097447,1764424259162,-151.0,0.00022,2]
[395097448,1764424259172,-160.954529,0.00022,2]
[395097449,1764424259181,-160.954529,0.00022,2]
[395097450,1764424259190,-197.4133,0.00022,2]
[395097451,1764424259199,-1249.0,0.00022,2]
[395097452,1764424259208,-160.954529,0.00022,2]
[395097453,1764424259217,-151.0,0.00022,2]
[395097454,1764424259226,-197.4133,0.00022,2]
[395097455,1764424259236,-151.0,0.00022,2]
[395097456,1764424259245,-151.0,0.00022,2]
[395097457,1764424259254,-151.0,0.00022,2]
[395097458,1764424259263,-151.0,0.00022,2]
[395097459,1764424259272,-151.0,0.00022,2]
[395097460,1764424259281,-1249.0,0.00022,2]
[395097461,1764424259290,-151.0,0.00022,2]
[395097462,1764424259299,-150.0,0.00022016,4]
[395097463,1764424259308,-491.79674248,0.00022087,7]
[395097464,1764424259317,-513.78023628,0.0002217,2]
[395097465,1764424259326,-150.0,0.00022216,4]
[395097466,1764424259338,-2953.57,0.00022236,2]
[395097467,1764424259347,-500.0,0.00022257,2]
[395097468,1764424259356,-537.84619253,0.00022315,2]
[395097469,1764424259365,-169.97,0.00022329,2]
[395097470,1764424259374,-150.0,0.00022329,2]
[395097471,1764424259383,-150.0,0.00022329,2]
[395097472,1764424259392,-1103.84,0.00022329,2]
[395097473,1764424259401,-158.99150689,0.00022336,2]
[395097474,1764424259410,-409.83061873,0.00022361,7]
[395097475,1764424259418,-328.17073037,0.00022439,16]
[395097476,1764424259428,-151.0,0.00022459,2]
[395097477,1764424259439,-163.794651,0.00022459,2]
[395097478,1764424259448,-151.0,0.00022459,2]
[395097479,1764424259456,-150.0,0.00022466,4]
[395097480,1764424259465,-150.0,0.00022466,4]
[395097481,1764424259474,-150.0,0.00022466,4]
[395097482,1764424259483,-198.22963934,0.00022466,4]
[395097483,1764424259492,-150.0,0.00022466,4]
[395097484,1764424259501,-150.0,0.00022466,4]
[395097485,1764424259509,-150.0,0.00022466,4]
[395097486,1764424259519,-150.0,0.00022466,4]
[395097487,1764424259529,-206.34866126,0.00022466,2]
[395097488,1764424259538,-187.78006525,0.00022466,2]
[395097489,1764424259547,-150.0,0.00022523,2]
[395097490,1764424259557,-878.00387723,0.00022533,2]
[395097491,1764424259566,-2500.0,0.00022548,7]
[395097492,1764424259576,-3000.0,0.00022548,7]
[395097493,1764424259585,-176.07,0.00022603,2]
[395097494,1764424259594,-500.0,0.00022664,2]
[395097495,1764424259603,-302.22522752,0.00022691,2]
[395097496,1764424259611,-9961.48845509,0.00022759,2]
[395097497,1764424259620,-327.86449498,0.00022772,7]
[395097498,1764424259630,-1321.0,0.00022841,2]
[395097499,1764424259639,-1603.0,0.00022841,2]
[395097500,1764424259648,-909.0,0.00022841,2]
[395097501,1764424259657,-1193.0,0.00022841,2]
[395097502,1764424259666,-640.0,0.00022841,2]
[395097503,1764424259675,-1258.0,0.00022841,2]
[395097504,1764424259684,-150.0,0.00022841,2]
[395097505,1764424259692,-1652.749,0.00022841,2]
[395097506,1764424259702,-289.0,0.00022879,2]
[395097507,1764424259710,-500.0,0.00022977,2]
[395097508,1764424259719,-630.63252825,0.00023,7]
[395097509,1764424259728,-1461.27751259,0.00023,30]
[395097510,1764424259737,-400.0,0.00023,2]
[395097511,1764424259746,-6344.11736,0.00023,2]
[395097512,1764424259756,-341.86889586,0.00023014,2]
[395097513,1764424259765,-328.17073037,0.00023069,17]
[395097514,1764424259774,-500.0,0.00023079,2]
[395097515,1764424259783,-500.0,0.00023124,2]
[395097516,1764424259792,-1600.0,0.00023142,2]
[395097517,1764424259801,-1613.0,0.00023177,2]
[395097518,1764424259810,-245.89837124,0.00023183,7]
[395097519,1764424259819,-373.07297731,0.00023278,2]
[395097520,1764424259828,-332.60791905,0.00023278,2]
[395097521,1764424259838,-151.0,0.00023333,2]
[395097522,1764424259847,-151.0,0.00023333,2]
[395097523,1764424259856,-151.0,0.00023333,2]
[395097524,1764424259866,-677.47847321,0.00023462,2]
[395097525,1764424259875,-14210.0,0.00023463,7]
[395097526,1764424259885,-500.0,0.00023472,2]
[395097527,1764424259895,-500.0,0.00023508,2]
[395097528,1764424259904,-500.0,0.0002361,2]
[395097529,1764424259914,-3000.0,0.00023644,7]
[395097530,1764424259924,-500.0,0.0002367,2]
[395097531,1764424259933,-500.0,0.0002368,2]
[395097532,1764424259943,-328.17073037,0.00023698,19]
[395097533,1764424259953,-3501.0,0.0002374,2]
[395097534,1764424259966,-380.0,0.000238,14]
[395097535,1764424259975,-959.31,0.000238,4]
[395097536,1764424259984,-500.0,0.0002386,2]
[395097537,1764424259993,-163.93224749,0.00023867,7]
[395097538,1764424260002,-351.2058419,0.0002401,2]
[395097539,1764424260011,-500.0,0.00024163,2]
[395097540,1764424260021,-500.0,0.00024206,2]
[395097541,1764424260030,-246.28,0.00024225,30]
[395097542,1764424260039,-328.17073037,0.00024328,20]
[395097543,1764424260049,-2000.0,0.000244,2]
[395097544,1764424260058,-1117.56770797,0.000245,5]
[395097545,1764424260067,-1036.30492439,0.000245,5]
[395097546,1764424260077,-1120.19438956,0.000245,5]
[395097547,1764424260087,-1036.98649542,0.000245,5]
[395097548,1764424260095,-1123.94864905,0.000245,5]
[395097549,1764424260105,-1114.83786118,0.000245,5]
[395097550,1764424260114,-1009.01654869,0.000245,5]
[395097551,1764424260123,-1052.77931871,0.000245,5]
[395097552,1764424260132,-162.089583,0.000245,2]
[395097553,1764424260141,-151.0,0.000245,2]
[395097554,1764424260150,-151.0,0.000245,2]
[395097555,1764424260159,-157.471859,0.000245,2]
[395097556,1764424260168,-151.0,0.000245,2]
[395097557,1764424260177,-151.0,0.000245,2]
[395097558,1764424260186,-151.0,0.000245,2]
[395097559,1764424260195,-500.0,0.00024532,2]
[395097560,1764424260204,-324.5,0.00024554,15]
[395097561,1764424260213,-217.0,0.000246,2]
[395097562,1764424260222,-151.0,0.000246,2]
[395097563,1764424260231,-151.0,0.000246,2]
[395097564,1764424260240,-151.0,0.000246,2]
[395097565,1764424260250,-151.0,0.000246,2]
[395097566,1764424260259,-653.361433,0.000246,2]
[395097567,1764424260267,-151.0,0.000246,2]
[395097568,1764424260277,-653.361433,0.000246,2]
[395097569,1764424260285,-151.0,0.000246,2]
[395097570,1764424260294,-151.0,0.000246,2]
[395097571,1764424260304,-653.361433,0.000246,2]
[395097572,1764424260313,-151.0,0.000246,2]
[395097573,1764424260322,-151.0,0.000246,2]
[395097574,1764424260331,-1452.112053,0.000246,2]
[395097575,1764424260340,-1452.112053,0.000246,2]
[395097576,1764424260349,-1452.112053,0.000246,2]
[395097577,1764424260359,-1452.112053,0.000246,2]
[395097578,1764424260368,-151.0,0.000246,2]
[395097579,1764424260377,-386.87667747,0.00024647,2]
[395097580,1764424260386,-344.91441206,0.00024647,2]
[395097581,1764424260395,-1000.0,0.00024657,2]
[395097582,1764424260404,-1000.0,0.00024657,2]
[395097583,1764424260413,-327.18332067,0.00024657,7]
[395097584,1764424260422,-1384.13670995,0.00024657,7]
[395097585,1764424260431,-1000.0,0.00024658,2]
[395097586,1764424260441,-151.0,0.00024658,2]
[395097587,1764424260450,-151.0,0.00024658,2]
[395097588,1764424260459,-151.0,0.00024658,2]
[395097589,1764424260469,-151.0,0.00024658,2]
[395097590,1764424260479,-151.0,0.00024658,2]
[395097591,1764424260488,-227.518854,0.00024658,2]